fUSD/lending_fUSD_20251206
["ID","MTS","AMOUNT","RATE_DAILY","PERIOD"]
[396525729,1765036241433,-1000.0,0.00013602,2]
[396525730,1765036241442,-1000.0,0.00013602,2]
[396525731,1765036241451,-1000.0,0.00013602,2]
[396525732,1765036241460,-1000.0,0.00013602,2]
[396525733,1765036241469,-1000.0,0.00013602,2]
[396525734,1765036241479,-1000.0,0.00013602,2]
[396525735,1765036241489,-1000.0,0.00013602,2]
[396525736,1765036241499,-1000.0,0.00013602,2]
[396525737,1765036241508,-1000.0,0.00013602,2]
[396525738,1765036241517,-1000.0,0.00013602,2]
[396525739,1765036241527,-1000.0,0.00013602,2]
[396525740,1765036241537,-1000.0,0.00013602,2]
[396525741,1765036241546,-1000.0,0.00013602,2]
[396525742,1765036241556,-1000.0,0.00013602,2]
[396525743,1765036241567,-1000.0,0.00013602,2]
[396525744,1765036241576,-1000.0,0.00013602,2]
[396525745,1765036241585,-1000.0,0.00013602,2]
[396525746,1765036241595,-1000.0,0.00013602,2]
[396525747,1765036241604,-1000.0,0.00013602,2]
[396525748,1765036241614,-1000.0,0.00013602,2]
[396525749,1765036241623,-1000.0,0.00013602,2]
[396525750,1765036241632,-1000.0,0.00013602,2]
[396525751,1765036241641,-1017.86356618,0.00013602,2]
[396525752,1765036241650,-1000.0,0.00013606,3]
[396525753,1765036241659,-500.0,0.00013644,2]
[396525754,1765036241669,-200.0,0.00013644,2]
[396525755,1765036241678,-449.0,0.00013644,2]
[396525756,1765036241687,-532.66059578,0.00013644,2]
[396525757,1765036241697,-500.0,0.00013644,2]
[396525758,1765036241706,-323.66242277,0.00013644,2]
[396525759,1765036241716,-500.0,0.00013644,2]
[396525760,1765036241726,-159.34435053,0.00013644,2]
[396525761,1765036241736,-150.43281348,0.00013644,2]
[396525762,1765036241745,-150.93251578,0.00013644,2]
[396525763,1765036241755,-150.0,0.00013644,2]
[396525764,1765036241766,-200.0,0.00013652,2]
[396525765,1765036241777,-500.0,0.00013652,2]
[396525766,1765036241787,-150.0,0.00013652,2]
[396525767,1765036241797,-166.66,0.00013687,2]
[396525768,1765036241806,-500.0,0.00013698,2]
[396525769,1765036241815,-500.0,0.00013698,2]
[396525770,1765036241825,-502.41193472,0.00013698,2]
[396525771,1765036241834,-500.0,0.00013698,2]
[396525772,1765036241844,-500.0,0.00013698,2]
[396525773,1765036241853,-500.0,0.00013698,2]
[396525774,1765036241862,-500.0,0.00013698,2]
[396525775,1765036241871,-501.19138157,0.00013698,2]
[396525776,1765036241880,-511.45641442,0.00013698,2]
[396525777,1765036241890,-506.09206684,0.00013698,2]
[396525778,1765036241899,-500.0,0.00013698,2]
[396525779,1765036241909,-500.0,0.00013698,2]
[396525780,1765036241918,-500.0,0.00013698,2]
[396525781,1765036241927,-342.01626432,0.00013698,2]
[396525782,1765036241936,-500.0,0.00013698,2]
[396525783,1765036241946,-500.0,0.00013698,2]
[396525784,1765036241955,-500.0,0.00013698,2]
[396525785,1765036241964,-500.0,0.00013698,2]
[396525786,1765036241973,-500.0,0.00013698,2]
[396525787,1765036241982,-500.0,0.00013698,2]
[396525788,1765036241992,-500.0,0.00013698,2]
[396525789,1765036242001,-500.0,0.00013698,2]
[396525790,1765036242011,-500.0,0.00013698,2]
[396525791,1765036242020,-500.0,0.00013698,2]
[396525792,1765036242029,-500.0,0.00013698,2]
[396525793,1765036242039,-500.0,0.00013698,2]
[396525794,1765036242048,-500.0,0.00013698,2]
[396525795,1765036242057,-500.0,0.00013698,2]
[396525796,1765036242066,-500.0,0.00013698,2]
[396525797,1765036242075,-500.0,0.00013698,2]
[396525798,1765036242084,-500.0,0.00013698,2]
[396525799,1765036242093,-500.0,0.00013698,2]
[396525800,1765036242102,-500.0,0.00013698,2]
[396525801,1765036242113,-500.0,0.00013698,2]
[396525802,1765036242122,-500.0,0.00013698,2]
[396525803,1765036242131,-500.0,0.00013698,2]
[396525804,1765036242140,-500.0,0.00013698,2]
[396525805,1765036242149,-282.9143022,0.00013698,2]
[396525806,1765036242159,-500.0,0.00013698,2]
[396525807,1765036242168,-500.0,0.00013698,2]
[396525808,1765036242181,-500.0,0.00013698,2]
[396525809,1765036242190,-500.0,0.00013698,2]
[396525810,1765036242199,-500.0,0.00013698,2]
[396525811,1765036242209,-500.0,0.00013698,2]
[396525812,1765036242218,-500.0,0.00013698,2]
[396525813,1765036242227,-500.0,0.00013698,2]
[396525814,1765036242236,-500.0,0.00013698,2]
[396525815,1765036242245,-500.0,0.00013698,2]
[396525816,1765036242255,-500.0,0.00013698,2]
[396525817,1765036242264,-485.52312637,0.00013698,2]
[396525818,1765036242274,-561.65,0.00013698,2]
[396525819,1765036242283,-561.65,0.00013698,2]
[396525820,1765036242292,-561.65,0.00013698,2]
[396525821,1765036242302,-561.65,0.00013698,2]
[396525822,1765036242311,-166.66,0.00013699,2]
[396525823,1765036242322,-200.0,0.00013699,2]
[396525824,1765036242331,-1000.0,0.00013699,2]
[396525825,1765036242340,-600.0,0.00013699,2]
[396525826,1765036242349,-500.0,0.00013699,2]
[396525827,1765036242358,-150.0,0.00013699,2]
[396525828,1765036242368,-187.37103332,0.00013699,2]
[396525829,1765036242377,-500.0,0.00013699,2]
[396525830,1765036242387,-603.91782068,0.00013699,2]
[396525831,1765036242396,-159.0,0.00013725,2]
[396525832,1765036242405,-200.0,0.00013725,2]
[396525833,1765036242414,-150.0,0.00013725,2]
[396525834,1765036242423,-500.0,0.00013781,2]
[396525835,1765036242433,-449.0,0.00013781,2]
[396525836,1765036242442,-152.52134953,0.00013781,2]
[396525837,1765036242451,-150.0,0.00013781,2]
[396525838,1765036242461,-500.0,0.00013789,2]
[396525839,1765036242471,-150.0,0.00013789,2]
[396525840,1765036242480,-7000.0,0.0001379,2]
[396525841,1765036242492,-663.93287602,0.00013791,2]
[396525842,1765036242501,-249.30171494,0.00013791,2]
[396525843,1765036242510,-1239.31,0.00013798,2]
[396525844,1765036242520,-286.97,0.00013825,2]
[396525845,1765036242529,-577.91535804,0.00013835,2]
[396525846,1765036242539,-166.66,0.00013836,2]
[396525847,1765036242548,-500.0,0.00013836,2]
[396525848,1765036242557,-200.0,0.00013848,2]
[396525849,1765036242567,-254.6782465,0.00013862,2]
[396525850,1765036242576,-500.0,0.00013918,2]
[396525851,1765036242586,-449.0,0.00013918,2]
[396525852,1765036242595,-429.47660498,0.00013918,2]
[396525853,1765036242604,-243.81823337,0.00013918,2]
[396525854,1765036242614,-262.0,0.00013918,2]
[396525855,1765036242623,-500.0,0.00013926,2]
[396525856,1765036242633,-150.0,0.00013926,2]
[396525857,1765036242642,-2972.8882177,0.00013968,2]
[396525858,1765036242651,-153.43299,0.00013968,2]
[396525859,1765036242661,-151.0,0.00013968,2]
[396525860,1765036242670,-153.028418,0.00013968,2]
[396525861,1765036242679,-165.683626,0.00013968,2]
[396525862,1765036242688,-165.683626,0.00013968,2]
[396525863,1765036242699,-153.2113,0.00013968,2]
[396525864,1765036242708,-151.0,0.00013968,2]
[396525865,1765036242718,-165.683626,0.00013968,2]
[396525866,1765036242728,-230.816404,0.00013968,2]
[396525867,1765036242737,-165.683626,0.00013968,2]
[396525868,1765036242747,-151.0,0.00013968,2]
[396525869,1765036242756,-336.025119,0.00013968,2]
[396525870,1765036242766,-336.025119,0.00013968,2]
[396525871,1765036242775,-336.025119,0.00013968,2]
[396525872,1765036242786,-336.025119,0.00013968,2]
[396525874,1765036242795,-196.608304,0.00013968,2]
[396525875,1765036242804,-196.608304,0.00013968,2]
[396525876,1765036242813,-196.608304,0.00013968,2]
[396525877,1765036242823,-196.608304,0.00013968,2]
[396525878,1765036242832,-206.634588,0.00013968,2]
[396525879,1765036242843,-379.853328,0.00013968,2]
[396525880,1765036242853,-379.853328,0.00013968,2]
[396525881,1765036242862,-379.853328,0.00013968,2]
[396525882,1765036242872,-379.853328,0.00013968,2]
[396525883,1765036242882,-152.274201,0.00013968,2]
[396525884,1765036242893,-151.0,0.00013968,2]
[396525885,1765036242903,-151.0,0.00013968,2]
[396525886,1765036242912,-151.0,0.00013968,2]
[396525887,1765036242921,-151.0,0.00013968,2]
[396525888,1765036242930,-342.302899,0.00013968,2]
[396525889,1765036242940,-492.735654,0.00013968,2]
[396525890,1765036242949,-342.302899,0.00013968,2]
[396525891,1765036242959,-492.735654,0.00013968,2]
[396525892,1765036242968,-152.220373,0.00013968,2]
[396525893,1765036242977,-342.302899,0.00013968,2]
[396525894,1765036242987,-492.735654,0.00013968,2]
[396525897,1765036242996,-152.549737,0.00013968,2]
[396525899,1765036243005,-342.302899,0.00013968,2]
[396525901,1765036243014,-492.735654,0.00013968,2]
[396525902,1765036243024,-153.588595,0.00013968,2]
[396525903,1765036243033,-627.278881,0.00013968,2]
[396525906,1765036243043,-627.278881,0.00013968,2]
[396525909,1765036243052,-627.278881,0.00013968,2]
[396525910,1765036243061,-627.278881,0.00013968,2]
[396525911,1765036243071,-151.0,0.00013968,2]
[396525912,1765036243080,-166.66,0.00013973,2]
[396525913,1765036243089,-461.0,0.00013973,2]
[396525914,1765036243099,-500.0,0.00013973,2]
[396525915,1765036243108,-14375.54396746,0.0001399,2]
[396525916,1765036243117,-367.152816,0.00014,2]
[396525917,1765036243127,-1327.32148806,0.0001401,2]
[396525918,1765036243136,-258.11790004,0.00014016,2]
[396525919,1765036243145,-7000.0,0.0001404,2]
[396525920,1765036243154,-151.0,0.0001404,2]
[396525921,1765036243163,-244.522234,0.0001404,2]
[396525922,1765036243173,-151.0,0.0001404,2]
[396525923,1765036243183,-151.0,0.0001404,2]
[396525924,1765036243194,-151.0,0.0001404,2]
[396525925,1765036243204,-151.0,0.0001404,2]
[396525926,1765036243214,-151.0,0.0001404,2]
[396525927,1765036243223,-151.0,0.0001404,2]
[396525928,1765036243235,-151.0,0.0001404,2]
[396525929,1765036243245,-151.0,0.0001404,2]
[396525930,1765036243255,-151.0,0.0001404,2]
[396525931,1765036243268,-151.0,0.0001404,2]
[396525932,1765036243279,-196.66989,0.0001404,2]
[396525933,1765036243290,-151.0,0.0001404,2]
[396525934,1765036243300,-151.0,0.0001404,2]
[396525935,1765036243310,-151.0,0.0001404,2]
[396525936,1765036243319,-151.0,0.0001404,2]
[396525937,1765036243330,-151.0,0.0001404,2]
[396525938,1765036243339,-152.140894,0.0001404,2]
[396525939,1765036243349,-152.619178,0.0001404,2]
[396525940,1765036243359,-151.0,0.0001404,2]
[396525941,1765036243368,-151.0,0.0001404,2]
[396525942,1765036243379,-151.0,0.0001404,2]
[396525943,1765036243388,-151.0,0.0001404,2]
[396525944,1765036243399,-151.0,0.0001404,2]
[396525945,1765036243410,-151.0,0.0001404,2]
[396525946,1765036243420,-151.0,0.0001404,2]
[396525947,1765036243430,-152.873468,0.0001404,2]
[396525948,1765036243439,-153.309014,0.0001404,2]
[396525950,1765036243448,-151.0,0.0001404,2]
[396525951,1765036243458,-239.145411,0.0001404,2]
[396525953,1765036243467,-2592.070364,0.0001404,2]
[396525955,1765036243477,-239.145411,0.0001404,2]
[396525956,1765036243486,-542.98217,0.0001404,2]
[396525958,1765036243495,-2592.070364,0.0001404,2]
[396525959,1765036243504,-239.145411,0.0001404,2]
[396525960,1765036243514,-2592.070364,0.0001404,2]
[396525961,1765036243523,-239.145411,0.0001404,2]
[396525962,1765036243532,-151.0,0.0001404,2]
[396525963,1765036243542,-2592.070364,0.0001404,2]
[396525964,1765036243551,-151.0,0.0001404,2]
[396525965,1765036243560,-542.98217,0.0001404,2]
[396525966,1765036243570,-218.313908,0.0001404,2]
[396525967,1765036243579,-542.98217,0.0001404,2]
[396525968,1765036243588,-218.313908,0.0001404,2]
[396525969,1765036243598,-542.98217,0.0001404,2]
[396525970,1765036243607,-9007.305124,0.0001404,2]
[396525971,1765036243616,-669.223393,0.0001404,2]
[396525972,1765036243626,-218.313908,0.0001404,2]
[396525973,1765036243635,-9007.305124,0.0001404,2]
[396525974,1765036243644,-669.223393,0.0001404,2]
[396525975,1765036243654,-218.313908,0.0001404,2]
[396525977,1765036243664,-9007.305124,0.0001404,2]
[396525979,1765036243674,-669.223393,0.0001404,2]
[396525980,1765036243684,-669.223393,0.0001404,2]
[396525981,1765036243694,-9007.305124,0.0001404,2]
[396525982,1765036243703,-244.112819,0.0001404,2]
[396525983,1765036243713,-151.0,0.0001404,2]
[396525984,1765036243722,-244.112819,0.0001404,2]
[396525985,1765036243732,-244.112819,0.0001404,2]
[396525986,1765036243741,-244.112819,0.0001404,2]
[396525987,1765036243751,-156.93281,0.0001404,2]
[396525988,1765036243968,-156.93281,0.0001404,2]
[396525989,1765036243988,-151.572302,0.0001404,2]
[396525990,1765036243998,-156.93281,0.0001404,2]
[396525991,1765036244007,-156.93281,0.0001404,2]
[396525992,1765036244016,-151.0,0.0001404,2]
[396525993,1765036244025,-151.0,0.0001404,2]
[396525994,1765036244034,-151.0,0.0001404,2]
[396525995,1765036244043,-166.62864,0.0001404,2]
[396525996,1765036244053,-166.62864,0.0001404,2]
[396525997,1765036244063,-166.62864,0.0001404,2]
[396525998,1765036244074,-151.0,0.0001404,2]
[396525999,1765036244083,-166.62864,0.0001404,2]
[396526000,1765036244094,-184.727851,0.0001404,2]
[396526001,1765036244105,-184.727851,0.0001404,2]
[396526002,1765036244115,-184.727851,0.0001404,2]
[396526003,1765036244125,-184.727851,0.0001404,2]
[396526004,1765036244135,-332.475893,0.0001404,2]
[396526005,1765036244144,-332.475893,0.0001404,2]
[396526006,1765036244155,-153.007344,0.0001404,2]
[396526007,1765036244170,-151.0,0.0001404,2]
[396526008,1765036244181,-332.475893,0.0001404,2]
[396526009,1765036244194,-243.348341,0.0001404,2]
[396526010,1765036244204,-332.475893,0.0001404,2]
[396526011,1765036244215,-233.796682,0.0001404,2]
[396526012,1765036244226,-233.796682,0.0001404,2]
[396526013,1765036244237,-151.0,0.0001404,2]
[396526014,1765036244246,-151.0,0.0001404,2]
[396526015,1765036244256,-233.796682,0.0001404,2]
[396526016,1765036244265,-549.682346,0.0001404,2]
[396526017,1765036244275,-233.796682,0.0001404,2]
[396526018,1765036244284,-151.0,0.0001404,2]
[396526019,1765036244294,-549.682346,0.0001404,2]
[396526020,1765036244303,-151.0,0.0001404,2]
[396526021,1765036244314,-549.682346,0.0001404,2]
[396526022,1765036244323,-549.682346,0.0001404,2]
[396526023,1765036244332,-151.0,0.0001404,2]
[396526024,1765036244342,-151.0,0.0001404,2]
[396526025,1765036244352,-151.0,0.0001404,2]
[396526026,1765036244361,-153.146465,0.0001404,2]
[396526027,1765036244371,-2876.878378,0.0001404,2]
[396526028,1765036244380,-2876.878378,0.0001404,2]
[396526029,1765036244390,-2876.878378,0.0001404,2]
[396526030,1765036244399,-151.0,0.0001404,2]
[396526031,1765036244409,-2876.878378,0.0001404,2]
[396526032,1765036244420,-919.228781,0.0001404,2]
[396526033,1765036244430,-919.228781,0.0001404,2]
[396526034,1765036244440,-151.0,0.0001404,2]
[396526035,1765036244449,-919.228781,0.0001404,2]
[396526036,1765036244459,-180.85705,0.0001404,2]
[396526037,1765036244469,-644.016338,0.0001404,2]
[396526038,1765036244480,-919.228781,0.0001404,2]
[396526039,1765036244490,-180.85705,0.0001404,2]
[396526040,1765036244500,-644.016338,0.0001404,2]
[396526041,1765036244510,-180.85705,0.0001404,2]
[396526042,1765036244520,-644.016338,0.0001404,2]
[396526043,1765036244529,-180.85705,0.0001404,2]
[396526044,1765036244539,-644.016338,0.0001404,2]
[396526045,1765036244548,-151.621781,0.0001404,2]
[396526046,1765036244558,-151.0,0.0001404,2]
[396526047,1765036244567,-154.787484,0.0001404,2]
[396526048,1765036244576,-151.0,0.0001404,2]
[396526049,1765036244586,-152.270595,0.0001404,2]
[396526050,1765036244596,-152.841406,0.0001404,2]
[396526051,1765036244606,-151.0,0.0001404,2]
[396526052,1765036244615,-151.0,0.0001404,2]
[396526053,1765036244625,-500.0,0.00014055,2]
[396526054,1765036244635,-449.0,0.00014055,2]
[396526055,1765036244645,-500.0,0.00014063,2]
[396526056,1765036244655,-250.0,0.00014063,2]
[396526057,1765036244665,-1239.31,0.00014072,2]
[396526058,1765036244674,-7458.39,0.0001408,2]
[396526059,1765036244683,-166.66,0.0001411,2]
[396526060,1765036244693,-500.0,0.0001411,2]
[396526061,1765036244703,-500.0,0.0001411,2]
[396526062,1765036244712,-1000.0,0.00014118,2]
[396526063,1765036244721,-166.66,0.00014125,2]
[396526064,1765036244731,-213.57,0.00014185,2]
[396526065,1765036244740,-500.0,0.00014192,2]
[396526066,1765036244750,-449.0,0.00014192,2]
[396526067,1765036244761,-500.0,0.000142,2]
[396526068,1765036244772,-47203.0,0.00014236,2]
[396526069,1765036244782,-166.66,0.00014247,2]
[396526070,1765036244791,-600.0,0.00014247,2]
[396526071,1765036244800,-500.0,0.00014247,2]
[396526072,1765036244812,-7000.0,0.0001429,2]
[396526073,1765036244825,-500.0,0.00014329,2]
[396526074,1765036244836,-449.0,0.00014329,2]
[396526075,1765036244846,-500.0,0.00014337,2]
[396526076,1765036244855,-1239.31,0.00014346,2]
[396526077,1765036244865,-255.0,0.00014354,2]
[396526078,1765036244875,-166.66,0.00014384,2]
[396526079,1765036244884,-500.0,0.00014384,2]
[396526080,1765036244894,-14375.54396746,0.00014405,2]
[396526081,1765036244903,-195.0,0.00014418,2]
[396526082,1765036244913,-365.8974645,0.00014418,2]
[396526083,1765036244923,-200.0,0.00014453,2]
[396526084,1765036244932,-620.52785935,0.00014466,2]
[396526085,1765036244942,-449.0,0.00014466,2]
[396526086,1765036244951,-1252.0,0.00014469,2]
[396526087,1765036244961,-151.0,0.00014469,2]
[396526088,1765036244971,-1252.0,0.00014469,2]
[396526089,1765036244980,-151.0,0.00014469,2]
[396526090,1765036244990,-1252.0,0.00014469,2]
[396526091,1765036244999,-1252.0,0.00014469,2]
[396526092,1765036245009,-1252.0,0.00014469,2]
[396526093,1765036245019,-1252.0,0.00014469,2]
[396526094,1765036245028,-1252.0,0.00014469,2]
[396526095,1765036245039,-1252.0,0.00014469,2]
[396526096,1765036245049,-1252.0,0.00014469,2]
[396526097,1765036245058,-1252.0,0.00014469,2]
[396526098,1765036245068,-1252.0,0.00014469,2]
[396526099,1765036245078,-1200.0,0.00014469,2]
[396526100,1765036245088,-157.0,0.00014469,2]
[396526101,1765036245099,-157.0,0.00014469,2]
[396526102,1765036245110,-157.0,0.00014469,2]
[396526103,1765036245120,-157.0,0.00014469,2]
[396526104,1765036245132,-157.0,0.00014469,2]
[396526105,1765036245141,-299.14560025,0.00014469,2]
[396526106,1765036245150,-195.0,0.00014474,2]
[396526107,1765036245159,-300.0,0.00014474,2]
[396526108,1765036245168,-300.0,0.00014474,2]
[396526109,1765036245178,-300.0,0.00014474,2]
[396526110,1765036245191,-300.0,0.00014474,2]
[396526111,1765036245200,-300.0,0.00014474,2]
[396526112,1765036245209,-300.0,0.00014474,2]
[396526113,1765036245219,-300.0,0.00014474,2]
[396526114,1765036245238,-363.58591686,0.00014474,2]
[396526115,1765036245249,-300.0,0.00014474,2]
[396526116,1765036245259,-541.0,0.00014474,2]
[396526117,1765036245270,-250.0,0.00014489,2]
[396526118,1765036245280,-193.0,0.00014494,2]
[396526119,1765036245290,-250.0,0.00014494,2]
[396526120,1765036245300,-195.0,0.00014494,2]
[396526121,1765036245310,-4652.0,0.00014497,2]
[396526122,1765036245320,-1600.0,0.00014504,2]
[396526123,1765036245330,-577.91535804,0.00014513,2]
[396526124,1765036245339,-420.0,0.00014518,2]
[396526125,1765036245349,-500.0,0.00014521,2]
[396526126,1765036245359,-7000.0,0.0001454,2]
[396526127,1765036245369,-587.78506232,0.00014556,2]
[396526128,1765036245379,-166.66,0.00014562,2]
[396526129,1765036245388,-1680.0,0.00014566,2]
[396526130,1765036245398,-195.0,0.00014567,2]
[396526131,1765036245408,-289.8175195,0.00014567,2]
[396526132,1765036245418,-195.0,0.00014576,2]
[396526133,1765036245428,-1000.0,0.000146,2]
[396526134,1765036245438,-449.0,0.00014603,2]
[396526135,1765036245447,-311.1,0.00014612,2]
[396526136,1765036245457,-322.6107,0.00014619,2]
[396526137,1765036245467,-1239.31,0.0001462,2]
[396526138,1765036245478,-366.84626943,0.00014658,2]
[396526139,1765036245487,-1327.32148805,0.00014695,2]
[396526140,1765036245497,-449.0,0.0001474,2]
[396526141,1765036245508,-258.11790004,0.00014774,2]
[396526142,1765036245519,-151.0,0.00014778,2]
[396526143,1765036245529,-151.0,0.00014778,2]
[396526144,1765036245538,-151.0,0.00014778,2]
[396526145,1765036245549,-151.0,0.00014778,2]
[396526146,1765036245559,-151.0,0.00014778,2]
[396526147,1765036245570,-151.0,0.00014778,2]
[396526148,1765036245581,-183.404618,0.00014778,2]
[396526149,1765036245595,-151.0,0.00014778,2]
[396526150,1765036245605,-165.683626,0.00014778,2]
[396526151,1765036245615,-165.683626,0.00014778,2]
[396526152,1765036245625,-151.0,0.00014778,2]
[396526153,1765036245636,-165.683626,0.00014778,2]
[396526154,1765036245646,-165.683626,0.00014778,2]
[396526155,1765036245656,-151.0,0.00014778,2]
[396526156,1765036245666,-336.025119,0.00014778,2]
[396526157,1765036245676,-336.025119,0.00014778,2]
[396526158,1765036245686,-336.025119,0.00014778,2]
[396526159,1765036245696,-336.025119,0.00014778,2]
[396526160,1765036245706,-196.608304,0.00014778,2]
[396526161,1765036245717,-196.608304,0.00014778,2]
[396526162,1765036245726,-196.608304,0.00014778,2]
[396526163,1765036245736,-196.608304,0.00014778,2]
[396526164,1765036245747,-379.853328,0.00014778,2]
[396526165,1765036245758,-379.853328,0.00014778,2]
[396526166,1765036245768,-379.853328,0.00014778,2]
[396526167,1765036245778,-379.853328,0.00014778,2]
[396526168,1765036245788,-151.0,0.00014778,2]
[396526170,1765036245798,-151.0,0.00014778,2]
[396526172,1765036245808,-151.0,0.00014778,2]
[396526173,1765036245818,-151.0,0.00014778,2]
[396526174,1765036245828,-342.302899,0.00014778,2]
[396526175,1765036245838,-492.735654,0.00014778,2]
[396526176,1765036245847,-342.302899,0.00014778,2]
[396526177,1765036245857,-492.735654,0.00014778,2]
[396526179,1765036245867,-342.302899,0.00014778,2]
[396526180,1765036245877,-492.735654,0.00014778,2]
[396526181,1765036245887,-342.302899,0.00014778,2]
[396526182,1765036245897,-492.735654,0.00014778,2]
[396526183,1765036245908,-151.390942,0.00014778,2]
[396526184,1765036245919,-239.145411,0.00014778,2]
[396526185,1765036245930,-2592.070364,0.00014778,2]
[396526186,1765036245941,-239.145411,0.00014778,2]
[396526187,1765036245955,-542.98217,0.00014778,2]
[396526188,1765036245965,-2592.070364,0.00014778,2]
[396526189,1765036245976,-239.145411,0.00014778,2]
[396526190,1765036245986,-2592.070364,0.00014778,2]
[396526191,1765036245996,-239.145411,0.00014778,2]
[396526192,1765036246007,-151.0,0.00014778,2]
[396526193,1765036246017,-2592.070364,0.00014778,2]
[396526194,1765036246028,-170.639437,0.00014778,2]
[396526196,1765036246038,-627.278881,0.00014778,2]
[396526198,1765036246047,-542.98217,0.00014778,2]
[396526200,1765036246058,-627.278881,0.00014778,2]
[396526201,1765036246068,-218.313908,0.00014778,2]
[396526203,1765036246078,-542.98217,0.00014778,2]
[396526204,1765036246087,-627.278881,0.00014778,2]
[396526205,1765036246098,-218.313908,0.00014778,2]
[396526206,1765036246108,-542.98217,0.00014778,2]
[396526207,1765036246118,-9007.305124,0.00014778,2]
[396526208,1765036246129,-627.278881,0.00014778,2]
[396526209,1765036246138,-669.223393,0.00014778,2]
[396526210,1765036246152,-9007.305124,0.00014778,2]
[396526211,1765036246163,-218.313908,0.00014778,2]
[396526212,1765036246173,-669.223393,0.00014778,2]
[396526213,1765036246185,-218.313908,0.00014778,2]
[396526214,1765036246197,-9007.305124,0.00014778,2]
[396526215,1765036246208,-573.74842342,0.00014778,2]
[396526239,1765036246931,-95.47496958,0.00014778,2]
[396526241,1765036246941,-669.223393,0.00014778,2]
[396526243,1765036246950,-680.30163741,0.00014778,2]
[396526247,1765036246979,-8327.00348659,0.00014778,2]
[396526249,1765036246988,-151.0,0.00014778,2]
[396526251,1765036246998,-244.112819,0.00014778,2]
[396526253,1765036247007,-151.0,0.00014778,2]
[396526255,1765036247017,-244.112819,0.00014778,2]
[396526257,1765036247026,-244.112819,0.00014778,2]
[396526259,1765036247036,-244.112819,0.00014778,2]
[396526261,1765036247045,-156.93281,0.00014778,2]
[396526263,1765036247055,-156.93281,0.00014778,2]
[396526265,1765036247064,-156.93281,0.00014778,2]
[396526267,1765036247074,-156.93281,0.00014778,2]
[396526269,1765036247083,-151.0,0.00014778,2]
[396526271,1765036247093,-151.0,0.00014778,2]
[396526273,1765036247102,-151.0,0.00014778,2]
[396526275,1765036247111,-166.62864,0.00014778,2]
[396526277,1765036247120,-166.62864,0.00014778,2]
[396526279,1765036247130,-166.62864,0.00014778,2]
[396526280,1765036247139,-151.0,0.00014778,2]
[396526281,1765036247148,-166.62864,0.00014778,2]
[396526282,1765036247158,-184.727851,0.00014778,2]
[396526283,1765036247167,-184.727851,0.00014778,2]
[396526284,1765036247177,-184.727851,0.00014778,2]
[396526285,1765036247190,-332.475893,0.00014778,2]
[396526286,1765036247200,-184.727851,0.00014778,2]
[396526287,1765036247209,-332.475893,0.00014778,2]
[396526288,1765036247218,-151.0,0.00014778,2]
[396526289,1765036247227,-332.475893,0.00014778,2]
[396526290,1765036247236,-332.475893,0.00014778,2]
[396526291,1765036247246,-233.796682,0.00014778,2]
[396526292,1765036247255,-233.796682,0.00014778,2]
[396526293,1765036247265,-151.0,0.00014778,2]
[396526294,1765036247274,-151.0,0.00014778,2]